fUSD/lending_fUSD_20241105
["ID","MTS","AMOUNT","RATE_DAILY","PERIOD"]
[341334017,1730815043399,150.0,2.54e-05,2]
[341334018,1730815043420,32.11875,2.54e-05,2]
[341334367,1730815660996,-50000.0,0.00043661,31]
[341334368,1730815661036,-50000.0,0.00043661,32]
[341334369,1730815661077,-50000.0,0.00043661,33]
[341334370,1730815661116,-50000.0,0.00043661,34]
[341334371,1730815661155,-50000.0,0.00043661,35]
[341334372,1730815661191,-738.0,0.00043661,120]
[341334373,1730815661226,-656.59271461,0.00043661,30]
[341334374,1730815661261,-867.13558678,0.00043661,90]
[341334375,1730815661296,-3087.71693073,0.00043661,30]
[341334376,1730815661331,-1999.999996,0.00043661,120]
[341334377,1730815661366,-495.91923234,0.00043661,30]
[341334378,1730815661404,-409.3355527,0.00043661,50]
[341334379,1730815661439,-370.6378633,0.00043661,30]
[341334380,1730815661478,-2191.85237674,0.00043661,120]
[341334381,1730815661514,-486.10238118,0.00043661,30]
[341334382,1730815661553,-850.2157577,0.00043661,30]
[341334383,1730815661589,-1000.0,0.00043661,30]
[341334384,1730815661626,-2692.35091841,0.00043661,30]
[341334385,1730815661661,-2306.35899877,0.00043661,30]
[341334386,1730815661701,-2737.1188628,0.00043661,120]
[341334387,1730815661738,-1601.52193869,0.00043661,120]
[341334388,1730815661776,-1951.30279644,0.00043661,30]
[341334389,1730815661816,-717.45794355,0.00043661,30]
[341334390,1730815661855,-2678.22074286,0.00043661,30]
[341334391,1730815661893,-2115.87648437,0.00043661,30]
[341334392,1730815662111,-1977.31013263,0.00043661,120]
[341334393,1730815662156,-3032.24541066,0.00043661,30]
[341334394,1730815662196,-257.36975277,0.00043661,30]
[341334395,1730815662233,-202.34644709,0.00043661,30]
[341334396,1730815662271,-2500.0,0.00043661,30]
[341334397,1730815662308,-264.31908411,0.00043661,120]
[341334398,1730815662344,-3312.8991934,0.00043661,30]
[341334399,1730815662381,-2353.85153002,0.00043661,30]
[341334400,1730815662416,-3086.34588458,0.00043661,120]
[341334401,1730815662452,-197.25104788,0.00043661,120]
[341334402,1730815662491,-832.79570135,0.00043661,30]
[341334403,1730815662529,-1200.0,0.00043661,120]
[341334404,1730815662567,-3000.0,0.00043661,30]
[341334405,1730815662607,-840.76100534,0.00043661,30]
[341334406,1730815662644,-905.61829534,0.00043661,30]
[341334407,1730815662684,-3016.7196413,0.00043661,60]
[341334408,1730815662722,-202.69618011,0.00043661,30]
[341334409,1730815662761,-935.58476151,0.00043661,30]
[341334410,1730815662800,-421.85456338,0.00043661,120]
[341334411,1730815662843,-1864.89999889,0.00043661,120]
[341334412,1730815662884,-225.77377169,0.00043661,30]
[341334413,1730815662921,-341.953299,0.00043661,30]
[341334414,1730815662958,-1424.06172855,0.00043661,120]
[341334415,1730815662994,-1021.98314097,0.00043661,120]
[341334416,1730815663033,-385.29583638,0.00043661,120]
[341334417,1730815663070,-1297.97910714,0.00043661,120]
[341334418,1730815663118,-1818.73699785,0.00043661,120]
[341334419,1730815663156,-2080.5934965,0.00043661,120]
[341334420,1730815663192,-312.88390518,0.00043661,30]
[341334421,1730815663228,-958.02993084,0.00043661,120]
[341334422,1730815663264,-378.3899708,0.00043661,31]
[341334423,1730815663299,-750.0,0.00043661,30]
[341334424,1730815663334,-3088.56125613,0.00043661,120]
[341334425,1730815663368,-196.41602671,0.00043661,30]
[341334426,1730815663403,-2121.92442132,0.00043661,120]
[341334427,1730815663436,-1635.35668323,0.00043661,60]
[341334428,1730815663476,-152.02933381,0.00043661,120]
[341334429,1730815663512,-2601.27077689,0.00043661,120]
[341334430,1730815663548,-425.97672947,0.00043661,30]
[341334431,1730815663583,-2991.60968472,0.00043661,30]
[341334432,1730815663619,-252.87981276,0.00043661,30]
[341334433,1730815663655,-1312.83679242,0.00043661,30]
[341334434,1730815663695,-2450.87987001,0.00043661,30]
[341334435,1730815663732,-1257.44641849,0.00043661,120]
[341334436,1730815663771,-524.57576638,0.00043661,120]
[341334437,1730815663818,-621.84674474,0.00043661,120]
[341334438,1730815663858,-860.57817074,0.00043661,30]
[341334439,1730815663898,-367.60252037,0.00043661,120]
[341334440,1730815663937,-214.48431365,0.00043661,120]
[341334441,1730815663978,-353.92393411,0.00043661,30]
[341334442,1730815664016,-198.19694415,0.00043661,30]
[341334443,1730815664053,-1239.84035891,0.00043661,120]
[341334444,1730815664089,-1963.30459641,0.00043661,120]
[341334445,1730815664125,-221.82651248,0.00043661,30]
[341334446,1730815664161,-2010.79513168,0.00043661,30]
[341334447,1730815664205,-291.84197493,0.00043661,120]
[341334448,1730815664241,-279.01128312,0.00043661,30]
[341334449,1730815664282,-4328.90696587,0.00043661,120]
[341334450,1730815664319,-1446.80196916,0.00043661,120]
[341334451,1730815664357,-259.59905058,0.00043661,30]
[341334452,1730815664394,-2183.03578629,0.00043661,30]
[341334453,1730815664433,-156.68986179,0.00043661,60]
[341334454,1730815664474,-2617.12298915,0.00043661,30]
[341334455,1730815664514,-765.51764482,0.00043661,30]
[341334456,1730815664558,-425.39785925,0.00043661,30]
[341334457,1730815664599,-219.91210787,0.00043661,45]
[341334458,1730815664639,-2411.61347896,0.00043661,120]
[341334459,1730815664679,-1719.39112723,0.00043661,30]
[341334460,1730815664721,-2261.61532121,0.00043661,30]
[341334461,1730815664762,-260.38136996,0.00043661,120]
[341334462,1730815664801,-3185.0187023,0.00043661,30]
[341334463,1730815664848,-706.14657863,0.00043661,30]
[341334464,1730815664886,-299.40346603,0.00043661,120]
[341334465,1730815664928,-228.10014363,0.00043661,120]
[341334466,1730815664972,-2077.00068068,0.00043661,120]
[341334467,1730815665014,-150.82136322,0.00043661,120]
[341334468,1730815665054,-1423.55915549,0.00043661,30]
[341334469,1730815665096,-1294.44779688,0.00043661,120]
[341334470,1730815665137,-2469.94190691,0.00043661,30]
[341334471,1730815665178,-2528.74554979,0.00043661,120]
[341334472,1730815665216,-417.16396589,0.00043661,120]
[341334473,1730815665258,-1085.38020697,0.00043661,30]
[341334474,1730815665299,-1250.22010586,0.00043661,120]
[341334475,1730815665342,-293.85448441,0.00043661,30]
[341334476,1730815665380,-2136.26121415,0.00043661,30]
[341334477,1730815665421,-1091.61442183,0.00043661,120]
[341334478,1730815665459,-209.92221587,0.00043661,120]
[341334479,1730815665498,-506.3733148,0.00043661,120]
[341334480,1730815665537,-275.0,0.00043661,30]
[341334481,1730815665577,-153.52627777,0.00043661,120]
[341334482,1730815665617,-2160.74969292,0.00043661,30]
[341334483,1730815665657,-3069.1447083,0.00043661,120]
[341334484,1730815665697,-1704.41748649,0.00043661,30]
[341334485,1730815665736,-490.20712852,0.00043661,120]
[341334486,1730815665775,-2010.17972067,0.00043661,30]
[341334487,1730815665815,-809.92990007,0.00043661,30]
[341334488,1730815665855,-3000.0,0.00043661,120]
[341334489,1730815666058,-10000.0,0.00043661,120]
[341334490,1730815666100,-488.68337399,0.00043661,45]
[341334491,1730815666141,-796.0,0.00043661,30]
[341334492,1730815666181,-150.0,0.00043661,30]
[341334495,1730815792158,799.922,0.00043661,30]
[341334496,1730815792553,732.2,0.00043661,30]
[341334497,1730815792840,672.0,0.00043661,30]
[341334498,1730815793242,615.61498,0.00043661,30]
[341334499,1730815793548,564.1729,0.00043661,30]
[341334500,1730815794128,517.68,0.00043661,30]
[341334501,1730815794424,474.51,0.00043661,30]
[341334502,1730815794762,434.9,0.00043661,30]
[341334503,1730815795066,1194.583,0.00043661,30]
[341334504,1730815795368,896.73933,0.00043661,30]
[341334505,1730815795671,671.0,0.00043661,30]
[341334506,1730815796112,504.39,0.00043661,30]
[341334507,1730815796402,504.2,0.00043661,30]
[341334508,1730815796561,808.0,0.00043661,30]
[341334509,1730815796680,252.0,0.00043661,30]
[341334510,1730815797049,755.5,0.00043661,30]
[341334511,1730815801945,1000.0,0.00043661,30]
[341334512,1730815805624,1000.0,0.00043661,30]
[341334513,1730815806809,1000.0,0.00043661,30]
[341334514,1730815807351,1000.0,0.00043661,30]
[341334515,1730815808190,1000.0,0.00043661,30]
[341334516,1730815808509,1000.0,0.00043661,30]
[341334517,1730815809386,1000.0,0.00043661,30]
[341334518,1730815809692,1000.0,0.00043661,30]
[341334519,1730815810624,1002.33120485,0.00043661,30]
[341334520,1730815810998,1000.0,0.00043661,30]
[341334521,1730815812129,1784.11376085,0.00043661,30]
[341334522,1730815812232,1000.0,0.00043661,30]
[341334523,1730815813418,1000.0,0.00043661,30]
[341334524,1730815814648,469.02876129,0.00043661,30]
[341334525,1730815816318,1097.07076234,0.00043661,30]
[341334526,1730815817057,1003.0,0.00043661,30]
[341334527,1730815829463,5177.0,0.00043661,30]
[341334536,1730815832271,-157.91,0.00015342,2]
[341334537,1730815832281,-254.3400808,0.00016095,2]
[341334538,1730815832290,-250.0,0.00021,2]
[341334539,1730815832299,-7.7499187,0.000211,2]
[341334540,1730815832372,-1367.2500813,0.000211,2]
[341334541,1730815832381,-374.79,0.00022075,2]
[341334542,1730815832390,-300.0,0.00023,2]
[341334543,1730815832399,-181.65,0.00023425,2]
[341334544,1730815832408,-250.0,0.00023681,2]
[341334545,1730815832418,-236.83,0.00023681,2]
[341334546,1730815832427,-500.0,0.0002372,2]
[341334547,1730815832437,-299.99,0.0002372,7]
[341334548,1730815832445,-851.79,0.0002372,2]
[341334549,1730815832455,-250.0,0.00023782,2]
[341334550,1730815832464,-23900.0,0.00023854,2]
[341334552,1730815832474,-4740.02,0.00024,2]
[341334554,1730815832483,-15790.0,0.00024015,2]
[341334556,1730815832492,-420.29,0.00024184,2]
[341334557,1730815832501,-209.45,0.00024233,2]
[341334559,1730815832510,-262.55288396,0.0002429,7]
[341334560,1730815832520,-374.79,0.00024339,2]
[341334561,1730815832529,-1000.0,0.00024441,2]
[341334562,1730815832539,-156.94,0.00024877,30]
[341334563,1730815832548,-206.20051564,0.000249,2]
[341334564,1730815832557,-5508.09726538,0.000249,2]
[341334565,1730815832566,-339.10300833,0.000249,2]
[341334566,1730815832575,-17599.92393611,0.000249,2]
[341334567,1730815832586,-938.06827006,0.000249,2]
[341334568,1730815832595,-1863.38799423,0.000249,2]
[341334569,1730815832604,-24570.36393219,0.000249,2]
[341334570,1730815832613,-177.44,0.00024965,2]
[341334571,1730815832623,-173.839,0.00024973,8]
[341334572,1730815832632,-160.68482684,0.00024973,2]
[341334573,1730815832641,-500.35262722,0.00024973,2]
[341334574,1730815832651,-500.0,0.00024973,2]
[341334575,1730815832660,-160.1390956,0.00024973,2]
[341334576,1730815832669,-202.57077739,0.00024973,2]
[341334577,1730815832679,-465.12521339,0.00024973,2]
[341334578,1730815832688,-500.0,0.00024973,2]
[341334579,1730815832697,-691.029,0.00024973,8]
[341334580,1730815832707,-175.28502876,0.0002499,2]
[341334581,1730815832892,-175.28502876,0.0002499,2]
[341334582,1730815832902,-175.28502876,0.0002499,2]
[341334583,1730815832912,-151.0,0.00024999,2]
[341334584,1730815832923,-239.81670834,0.00024999,2]
[341334585,1730815832932,-197.58866166,0.00024999,2]
[341334586,1730815832941,-189.11178569,0.00024999,2]
[341334587,1730815832950,-500.0,0.00024999,2]
[341334588,1730815832961,-356.74248263,0.00024999,2]
[341334589,1730815832970,-224.07904099,0.00024999,2]
[341334590,1730815832979,-22783.74935475,0.00024999,2]
[341334591,1730815832988,-1000.0,0.00024999,30]
[341334592,1730815832996,-143505.44625887,0.00025,2]
[341334593,1730815835775,266.40113278,0.00043661,120]
[341334597,1730815838111,-152.00669525,0.000249,2]
[341334598,1730815838120,-1032685.79866164,0.00025,2]
[341334599,1730815838271,-642703.06408773,0.00025,2]
[341334600,1730815838440,-5283.703325,0.00025,2]
[341334601,1730815838695,4983.2675,0.00043661,30]
[341334612,1730815840458,-984.55606756,0.00025,2]
[341334613,1730815840531,-657.0,0.00025,2]
[341334614,1730815840546,-291.15119334,0.00025,2]
[341334615,1730815840568,-988.83559321,0.00025,2]
[341334616,1730815840593,-734.18199999,0.00025,2]
[341334661,1730815843671,-18230.77372206,0.00025,2]
[341334662,1730815843682,-683.42308022,0.00025,2]
[341334663,1730815843694,-275559.99999971,0.00025,2]
[341334664,1730815843705,-500.0,0.00025,2]
[341334665,1730815844156,395.90063802,0.00043661,30]
[341334669,1730815846271,-265.124,0.00025,2]
[341334670,1730815846435,-467.40999998,0.00025,2]
[341334671,1730815846446,-2995.01488531,0.00025,2]
[341334672,1730815846458,-276.176,0.00025,2]
[341334673,1730815846526,-815.72982737,0.00025,2]
[341334675,1730815846617,-676.19316419,0.00025,2]
[341334676,1730815846628,-85676.76533246,0.00025,2]
[341334677,1730815846640,-81385.04012269,0.00025,2]
[341334678,1730815856631,56948.0,0.00043661,30]
[341334679,1730815872446,150.0,0.00043661,30]
[341334680,1730815896314,1000.0,0.00043661,30]
[341334681,1730815896940,428.65112,0.00043661,30]
[341334682,1730815899348,659.79849551,0.00043661,120]
[341334683,1730815910573,5000.0,0.00043661,30]
[341334684,1730815917851,-1000.0,0.00026369,30]
[341334685,1730815917908,-500.0,0.00027397,30]
[341334686,1730815917942,-150.0,0.000275,30]
[341334687,1730815917990,-500.0,0.00027671,30]
[341334688,1730815918023,-1000.0,0.00027739,30]
[341334689,1730815918070,-591.83820283,0.00027945,30]
[341334690,1730815918184,-150.0,0.00029,30]
[341334691,1730815918421,-1000.0,0.00029109,30]
[341334692,1730815918465,-156.94,0.0002934,30]
[341334693,1730815918526,-151.0,0.0003,120]
[341334694,1730815918553,-600.0,0.000301,120]
[341334695,1730815918597,-500.0,0.00030272,120]
[341334696,1730815918638,-1000.0,0.00030479,30]
[341334697,1730815918720,-500.0,0.00031705,120]
[341334698,1730815918756,-1000.0,0.00031849,30]
[341334699,1730815918794,-500.0,0.000321,30]
[341334700,1730815918818,-532.45964944,0.000321,30]
[341334701,1730815918842,-515.09296543,0.000321,30]
[341334702,1730815918869,-500.0,0.000321,30]
[341334703,1730815918895,-500.0,0.000321,30]
[341334704,1730815918918,-500.0,0.000321,30]
[341334705,1730815918942,-500.0,0.000321,30]
[341334706,1730815918968,-500.0,0.000321,30]
[341334707,1730815918990,-530.56192374,0.000321,30]
[341334708,1730815919014,-502.69956042,0.000321,30]
[341334709,1730815919038,-500.0,0.000321,30]
[341334710,1730815919063,-500.0,0.000321,30]
[341334711,1730815919087,-500.0,0.000321,30]
[341334712,1730815919113,-500.0,0.000321,30]
[341334713,1730815919137,-525.11129099,0.000321,30]
[341334714,1730815919161,-542.1508305,0.000321,30]
[341334715,1730815919218,-2000.0,0.00032876,120]
[341334716,1730815919242,-2000.0,0.00032876,120]
[341334717,1730815919265,-2110.93048303,0.00032876,120]
[341334718,1730815919294,-1649.88,0.00032876,120]
[341334719,1730815919320,-500.0,0.00033138,120]
[341334720,1730815919354,-1649.88,0.0003315,120]
[341334721,1730815919380,-1000.0,0.00033218,30]
[341334722,1730815919417,-1649.88,0.00033424,120]
[341334723,1730815919451,-1649.88,0.00033698,120]
[341334724,1730815919477,-156.94,0.00033803,120]
[341334725,1730815919500,-1649.88,0.00033972,120]
[341334726,1730815919523,-763.2836041,0.00034,35]
[341334727,1730815919546,-1649.88,0.00034246,120]
[341334728,1730815919569,-200.0,0.0003428,32]
[341334729,1730815919594,-1649.88,0.0003452,120]
[341334730,1730815919618,-278.281828,0.00034572,120]
[341334731,1730815919641,-356.77543,0.00034572,120]
[341334732,1730815919666,-500.0,0.00034572,120]
[341334733,1730815919688,-205.529246,0.00034572,120]
[341334734,1730815919712,-1000.0,0.00034588,30]
[341334735,1730815919736,-1649.88,0.00034794,120]
[341334736,1730815919760,-999.0,0.00034849,120]
[341334737,1730815919784,-156.272,0.0003489,30]
[341334738,1730815919809,-218.33445321,0.00035,30]
[341334739,1730815919832,-13159.9647375,0.00035,120]
[341334740,1730815919857,-1649.88,0.00035068,120]
[341334741,1730815919886,-1649.88,0.00035342,120]
[341334742,1730815919911,-151.0,0.00035452,120]
[341334743,1730815919936,-1000.0,0.00035616,120]
[341334744,1730815919962,-1000.0,0.00035616,120]
[341334745,1730815919987,-1000.0,0.00035616,120]
[341334746,1730815920012,-1000.0,0.00035616,120]
[341334747,1730815920037,-1000.0,0.00035616,120]
[341334748,1730815920061,-1000.0,0.00035616,120]
[341334749,1730815920086,-1000.0,0.00035616,120]
[341334750,1730815920110,-557.95,0.00035616,120]
[341334751,1730815920135,-1733.29,0.00035616,120]
[341334752,1730815920159,-1649.88,0.00035616,120]
[341334753,1730815920192,-1649.88,0.0003589,120]
[341334754,1730815920216,-1000.0,0.00035958,120]
[341334755,1730815920240,-915.91,0.00036,30]
[341334756,1730815920264,-250.0,0.00036,30]
[341334757,1730815920289,-991.33,0.000361,30]
[341334758,1730815920312,-500.0,0.00036128,60]
[341334759,1730815920337,-1649.88,0.00036164,120]
[341334760,1730815920360,-297.0,0.0003625,36]
[341334761,1730815920386,-1733.29,0.00036301,120]
[341334762,1730815920411,-156.209,0.00036343,120]
[341334763,1730815920435,-1649.88,0.00036438,120]
[341334764,1730815920459,-1649.88,0.00036712,120]
[341334765,1730815920486,-535.48,0.000368,31]
[341334766,1730815920513,-535.48,0.000368,31]
[341334767,1730815920538,-535.48,0.000368,31]
[341334768,1730815920564,-535.48,0.000368,31]
[341334769,1730815920590,-535.48,0.000368,31]
[341334770,1730815920617,-535.48,0.000368,31]
[341334771,1730815920645,-535.48,0.000368,31]
[341334772,1730815920672,-535.48,0.000368,31]
[341334773,1730815920700,-535.48,0.000368,31]
[341334774,1730815920726,-535.48,0.000368,31]
[341334775,1730815920752,-535.48,0.000368,31]
[341334776,1730815920778,-535.48,0.000368,31]
[341334777,1730815920802,-1000.0,0.00036986,89]
[341334778,1730815920826,-1000.0,0.00036986,89]
[341334779,1730815920849,-1000.0,0.00036986,89]
[341334780,1730815921041,-1000.0,0.00036986,89]
[341334781,1730815921065,-1000.0,0.00036986,89]
[341334782,1730815921088,-1000.0,0.00036986,89]
[341334783,1730815921111,-1000.0,0.00036986,89]
[341334784,1730815921134,-1000.0,0.00036986,89]
[341334785,1730815921158,-1000.0,0.00036986,89]
[341334786,1730815921181,-1000.0,0.00036986,89]
[341334787,1730815921205,-1000.0,0.00036986,89]
[341334788,1730815921227,-1000.0,0.00036986,89]
[341334789,1730815921250,-1000.0,0.00036986,89]
[341334790,1730815921272,-1000.0,0.00036986,89]
[341334791,1730815921295,-1000.0,0.00036986,89]
[341334792,1730815921317,-1000.0,0.00036986,89]
[341334793,1730815921340,-1000.0,0.00036986,89]
[341334794,1730815921364,-1000.0,0.00036986,89]
[341334795,1730815921387,-1000.0,0.00036986,89]
[341334796,1730815921412,-1000.0,0.00036986,89]
[341334797,1730815921435,-1000.0,0.00036986,89]
[341334798,1730815921457,-1000.0,0.00036986,89]
[341334799,1730815921481,-957.32950612,0.00036986,89]
[341334800,1730815921507,-1733.29,0.00036986,120]
[341334801,1730815921530,-1649.88,0.00036986,120]
[341334802,1730815921553,-974.0621667,0.00037,120]
[341334803,1730815921577,-759.9438476,0.000372,103]
[341334804,1730815921602,-759.94384759,0.000372,103]
[341334805,1730815921625,-759.94384759,0.000372,103]
[341334806,1730815921650,-759.94384759,0.000372,103]
[341334807,1730815921673,-759.94384759,0.000372,103]
[341334808,1730815921697,-500.0,0.00037224,60]
[341334809,1730815921721,-1400.0,0.00037224,60]
[341334810,1730815921745,-500.0,0.00037224,60]
[341334811,1730815921770,-1649.88,0.0003726,120]
[341334812,1730815921796,-176.95,0.00037283,120]
[341334813,1730815921820,-1365.45186273,0.0003729,120]
[341334814,1730815921845,-1000.0,0.00037328,120]
[341334815,1730815921871,-180.0,0.000374,120]
[341334816,1730815921896,-991.33,0.000374,30]
[341334817,1730815921921,-500.0,0.00037401,120]
[341334818,1730815921945,-1649.88,0.00037534,120]
[341334819,1730815921971,-1733.29,0.00037671,120]
[341334820,1730815921996,-500.0,0.00037772,60]
[341334821,1730815922020,-1400.0,0.00037772,60]
[341334822,1730815922044,-1649.88,0.00037808,120]
[341334823,1730815922068,-1800.0,0.00038,39]
[341334824,1730815922091,-250.0,0.00038,30]
[341334825,1730815922114,-659.79849551,0.00038,120]
[341334826,1730815922138,-1649.88,0.00038082,120]
[341334827,1730815922163,-156.94,0.00038266,120]
[341334828,1730815922187,-500.0,0.0003832,60]
[341334829,1730815922213,-1400.0,0.0003832,60]
[341334830,1730815922238,-500.0,0.0003832,60]
[341334831,1730815922267,-500.0,0.0003832,60]
[341334832,1730815922291,-150.5,0.0003833,120]
[341334833,1730815922315,-150.5,0.0003834,120]
[341334834,1730815922339,-150.5,0.0003835,120]
[341334835,1730815922362,-150.5,0.0003835,120]
[341334836,1730815922385,-150.0,0.00038355,30]
[341334837,1730815922412,-1733.29,0.00038356,120]
[341334838,1730815922437,-1649.88,0.00038356,120]
[341334839,1730815922460,-186.0,0.0003837,30]
[341334840,1730815922484,-186.0,0.0003837,30]
[341334841,1730815922507,-150.5,0.0003837,120]
[341334842,1730815922531,-150.5,0.0003837,120]
[341334843,1730815922554,-150.5,0.0003838,120]
[341334844,1730815922577,-186.0,0.0003838,30]
[341334845,1730815922601,-186.0,0.0003838,30]
[341334846,1730815922625,-186.0,0.0003838,30]
[341334847,1730815922649,-188.11,0.0003838,30]
[341334848,1730815922673,-272.08,0.0003838,120]
[341334849,1730815922696,-150.5,0.0003838,120]
[341334850,1730815922720,-200.39,0.0003838,120]
[341334851,1730815922743,-150.5,0.0003839,120]
[341334852,1730815922766,-186.0,0.0003839,30]
[341334853,1730815922789,-186.0,0.0003839,30]
[341334854,1730815922813,-186.0,0.0003839,30]
[341334855,1730815922837,-186.0,0.0003839,30]
[341334856,1730815922864,-150.5,0.0003839,120]
[341334857,1730815922889,-154.61,0.0003839,120]
[341334858,1730815922914,-156.93,0.0003839,120]
[341334859,1730815922939,-157.19,0.0003839,120]
[341334860,1730815922965,-150.5,0.0003839,120]
[341334861,1730815922989,-199.22,0.0003839,120]
[341334862,1730815923012,-150.0,0.00038492,30]
[341334863,1730815923035,-950.15606917,0.000385,120]
[341334864,1730815923062,-535.48,0.000385,31]
[341334865,1730815923089,-535.48,0.000385,31]
[341334866,1730815923115,-535.48,0.000385,31]
[341334867,1730815923143,-535.48,0.000385,31]
[341334868,1730815923170,-535.48,0.000385,31]
[341334869,1730815923196,-535.48,0.000385,31]
[341334870,1730815923224,-535.48,0.000385,31]
[341334871,1730815923252,-535.48,0.000385,31]
[341334872,1730815923281,-535.48,0.000385,31]
[341334873,1730815923308,-535.48,0.000385,31]
[341334874,1730815923336,-535.48,0.000385,31]
[341334875,1730815923365,-535.48,0.000385,31]
[341334876,1730815923394,-535.48,0.000385,31]
[341334877,1730815923423,-535.48,0.000385,31]
[341334878,1730815923452,-535.48,0.000385,31]
[341334879,1730815923481,-535.48,0.000385,31]
[341334880,1730815923510,-535.48,0.000385,31]
[341334881,1730815923539,-535.48,0.000385,31]
[341334882,1730815923568,-535.48,0.000385,31]
[341334883,1730815923597,-535.48,0.000385,31]
[341334884,1730815923785,-535.48,0.000385,31]
[341334885,1730815923815,-535.48,0.000385,31]
[341334886,1730815923844,-535.48,0.000385,31]
[341334887,1730815923877,-535.48,0.000385,31]
[341334888,1730815923905,-344.44406,0.0003858,30]
[341334889,1730815923932,-150.0,0.00038629,30]
[341334890,1730815923959,-1649.88,0.0003863,120]
[341334891,1730815923985,-1000.0,0.00038698,120]
[341334892,1730815924011,-150.0,0.00038766,30]
[341334893,1730815924036,-326.61394506,0.000388,30]
[341334894,1730815924061,-500.0,0.00038868,60]
[341334895,1730815924086,-1400.0,0.00038868,60]
[341334896,1730815924113,-500.0,0.00038868,60]
[341334897,1730815924138,-150.0,0.00038903,30]
[341334898,1730815924165,-1649.88,0.00038904,120]
[341334899,1730815924190,-1800.0,0.00039,40]
[341334900,1730815924215,-509.55798232,0.00039,120]
[341334901,1730815924240,-578.02319681,0.00039,120]
[341334902,1730815924265,-223.74874177,0.00039,120]
[341334903,1730815924290,-650.0,0.00039,120]
[341334904,1730815924315,-213.20616726,0.0003904,30]
[341334905,1730815924343,-1733.29,0.00039041,120]
[341334906,1730815924368,-1649.93312068,0.00039178,120]
[341334907,1730815924394,-160.0,0.000394,120]
[341334908,1730815924421,-500.0,0.00039416,60]
[341334909,1730815924448,-1400.0,0.00039416,60]
[341334910,1730815924474,-500.0,0.00039416,60]
[341334911,1730815924499,-500.0,0.00039416,60]
[341334912,1730815924524,-998.24,0.00039625,38]
[341334913,1730815924550,-1733.29,0.00039726,120]
[341334914,1730815924575,-177.94654558,0.00039726,30]
[341334915,1730815924600,-1400.0,0.00039964,60]
[341334916,1730815924624,-500.0,0.00039964,60]
[341334917,1730815924649,-230.80719329,0.0003999,120]
[341334918,1730815924674,-731.0,0.0004,120]
[341334919,1730815924698,-1800.0,0.0004,41]
[341334920,1730815924724,-160.0,0.0004,120]
[341334921,1730815924749,-500.0,0.0004,120]
[341334922,1730815924774,-287.71842242,0.0004,30]
[341334923,1730815924798,-441.07161084,0.0004,30]
[341334924,1730815924823,-176.38578425,0.0004,30]
[341334925,1730815924847,-3142.0,0.0004,120]
[341334926,1730815924875,-631.12296937,0.0004,120]
[341334927,1730815924906,-5773.99594601,0.0004,120]
[341334928,1730815924932,-971.0,0.0004,120]
[341334929,1730815924962,-150.01,0.0004,120]
[341334930,1730815924987,-2852.73,0.0004,120]
[341334931,1730815925015,-250.0,0.0004,30]
[341334932,1730815925040,-659.79849551,0.0004,120]
[341334933,1730815925065,-1000.0,0.00040068,120]
[341334934,1730815925091,-209.0,0.0004016,30]
[341334935,1730815925116,-500.0,0.00040231,120]
[341334936,1730815925140,-177.94654558,0.00040247,30]
[341334937,1730815925168,-535.48,0.000403,31]
[341334938,1730815925195,-535.48,0.000403,31]
[341334939,1730815925224,-535.48,0.000403,31]